bitfinex-derivatives/quotes_ETHF0:USTF0_20250110
["timestamp","ask_amount","ask_price","bid_price","bid_amount"]
[1736507708488,0.9121,3313.1,3312.7,0.4553]
[1736507708692,5.51883827,3312.9,3312.3,0.30191]
[1736507708996,0.30189,3312.7,3312.3,1.66441]
[1736507709189,0.30189,3312.6,3312.3,1.66441]
[1736507709384,0.3019,3312.5,3312.3,1.3625]
[1736507709790,0.4703,3312.8,3312.3,1.3625]
[1736507709791,0.30191,3312.4,3312.3,1.3625]
[1736507709989,0.30191,3312.4,3312.3,0.4317]
[1736507710189,0.30192,3312.2,3312.1,3.2078]
[1736507710882,1.6571,3312.5,3312.1,3.2078]
[1736507710883,0.30192,3312.3,3312.1,3.2078]
[1736507711995,0.30192,3312.2,3312.1,3.2078]
[1736507715097,0.30196,3311.8,3311.7,41.2316]
[1736507715293,0.30196,3311.8,3311.7,0.4316]
[1736507715894,0.30196,3311.9,3311.7,0.4316]
[1736507716198,0.30196,3311.8,3311.7,0.4316]
[1736507716402,0.30197,3311.7,3311.6,3.2078]
[1736507716603,0.30199,3311.5,3311.3,0.8898]
[1736507718295,2.78133827,3311.7,3311.3,0.8898]
[1736507718495,0.30199,3311.5,3311.3,0.8898]
[1736507719495,1.21,3311.8,3311.3,1.1918]
[1736507719691,1.21,3311.8,3311.3,0.8898]
[1736507719901,3.2078,3311.9,3311.4,0.302]
[1736507720104,3.2078,3311.9,3311.7,0.30196]
[1736507720305,3.2078,3311.9,3311.8,0.4475]
[1736507720608,0.30194,3312.0,3311.8,0.4475]
[1736507720901,0.30193,3312.2,3312.0,0.30194]
[1736507721091,1.21,3312.4,3311.9,0.8843]
[1736507721296,0.30189,3312.7,3312.4,0.3019]
[1736507721600,0.30189,3312.6,3312.5,0.4475]
[1736507722803,5.51883827,3312.6,3312.0,3.2078]
[1736507723108,5.51883827,3312.6,3311.9,0.439]
[1736507723109,0.30194,3312.0,3311.9,0.439]
[1736507723996,3.52103827,3312.2,3311.9,0.439]
[1736507723997,1.21,3312.2,3311.9,0.439]
[1736507724198,1.51193,3312.2,3311.9,0.74094]
[1736507724408,1.51193,3312.2,3312.0,0.9197]
[1736507724918,0.30193,3312.1,3312.0,0.9197]
[1736507725314,1.21,3312.2,3312.0,0.9197]
[1736507725511,1.51193,3312.2,3312.0,0.9197]
[1736507725709,0.30193,3312.1,3312.0,0.9197]
[1736507726017,1.21,3312.2,3312.0,0.9197]
[1736507726218,0.30193,3312.1,3312.0,0.9197]
[1736507727316,1.21,3312.2,3311.9,0.439]
[1736507727514,0.30193,3312.1,3311.9,0.439]
[1736507727715,1.21,3312.2,3311.9,0.439]
[1736507727918,1.51193,3312.2,3312.0,0.30194]
[1736507728217,1.51193,3312.2,3311.9,0.74095]
[1736507729006,1.51193,3312.2,3312.0,3.2078]
[1736507729212,0.30193,3312.2,3312.0,3.50974]
[1736507729413,4.86983827,3312.5,3312.0,3.50974]
[1736507729619,3.2078,3312.6,3312.0,3.2078]
[1736507729816,3.2078,3312.6,3312.5,0.3019]
[1736507730517,3.2078,3312.6,3312.4,0.3019]
[1736507730819,3.2078,3312.6,3312.5,1.6721]
[1736507731017,3.2078,3312.6,3312.5,1.3702]
[1736507731417,3.50969,3312.6,3312.5,1.3702]
[1736507731724,0.30192,3312.3,3312.2,0.903]
[1736507732522,0.4409,3312.5,3312.2,1.20492]
[1736507732915,0.30191,3312.4,3312.2,0.903]
[1736507733420,0.4409,3312.5,3312.2,0.903]
[1736507733621,0.30192,3312.3,3312.2,0.903]
[1736507733923,0.30191,3312.4,3312.2,0.903]
[1736507734119,0.74281,3312.5,3312.2,1.20492]
[1736507734325,0.30191,3312.4,3312.2,0.903]
[1736507734625,0.30192,3312.3,3312.2,0.903]
[1736507734822,0.30192,3312.3,3312.1,0.4349]
[1736507734823,0.30192,3312.2,3312.1,0.4349]
[1736507735519,0.30192,3312.2,3312.0,3.2078]
[1736507735520,0.30193,3312.1,3312.0,3.2078]
[1736507735718,0.30193,3312.1,3311.7,4.70487678]
[1736507735719,0.30196,3311.8,3311.7,4.70487678]
[1736507735918,0.30198,3311.7,3311.5,4.1123]
[1736507736116,0.467,3312.1,3311.5,4.1123]
[1736507736322,0.30198,3311.6,3311.5,4.1123]
[1736507736524,0.30198,3311.6,3311.3,5.16047678]
[1736507736525,0.302,3311.4,3311.3,4.70487678]
[1736507737027,4.0769,3311.5,3311.0,4.70487678]
[1736507737220,3.6379,3311.5,3311.3,0.4724]
[1736507737419,3.50979,3311.5,3311.3,0.4724]
[1736507738329,3.52103827,3311.6,3311.4,0.302]
[1736507738522,2.61301827,3311.6,3311.3,0.7744]
[1736507739522,2.31103827,3311.6,3311.3,0.4724]
[1736507739721,0.30199,3311.5,3311.3,0.4724]
[1736507740524,2.31103827,3311.6,3311.3,0.4724]
[1736507740723,0.302,3311.4,3311.3,0.4724]
[1736507742721,0.30199,3311.5,3311.3,0.7744]
[1736507743122,2.31103827,3311.6,3311.3,0.4724]
[1736507743326,2.61301827,3311.6,3311.4,0.302]
[1736507743527,2.31103827,3311.6,3311.5,0.30199]
[1736507745628,2.61301827,3311.6,3311.4,0.30199]
[1736507746028,0.30199,3311.5,3311.3,0.7744]
[1736507746224,0.30199,3311.5,3311.3,0.77441]
[1736507746531,2.31103827,3311.6,3311.1,4.0712]
[1736507746725,0.30201,3311.3,3311.1,4.37322]
[1736507746928,0.4334,3311.4,3311.3,0.30201]
[1736507747326,0.7354,3311.4,3311.3,0.30201]
[1736507747526,0.7354,3311.4,3311.1,4.0712]
[1736507747730,0.7354,3311.4,3311.2,0.30201]
[1736507748727,0.7354,3311.4,3311.2,3.50981]
[1736507748932,0.4334,3311.4,3311.2,3.50981]
[1736507749133,0.30201,3311.3,3311.2,3.50981]
[1736507750428,0.30201,3311.3,3311.2,3.50982]
[1736507751533,0.7354,3311.4,3311.2,3.50982]
[1736507751729,0.30201,3311.3,3311.2,3.2078]
[1736507752033,2.61304827,3311.3,3311.2,3.2078]
[1736507752733,2.31103827,3311.3,3311.2,3.50982]
[1736507752934,0.4348,3311.8,3311.5,0.30199]
[1736507752935,2.61301827,3311.6,3311.5,0.30199]
[1736507753428,2.31103827,3311.6,3311.5,0.30199]
[1736507753627,2.61301827,3311.6,3311.5,0.30199]
[1736507754631,2.61301827,3311.6,3311.4,0.30199]
[1736507754831,2.31103827,3311.6,3311.5,0.30199]
[1736507755535,2.61301827,3311.6,3311.5,0.30199]
[1736507755828,2.31103827,3311.6,3311.5,0.30199]
[1736507756139,2.31103827,3311.9,3311.8,0.30196]
[1736507757936,0.30194,3312.1,3311.8,0.4605]
[1736507758132,0.30194,3312.1,3311.9,0.76465]
[1736507758525,0.4429,3312.3,3312.2,0.30192]
[1736507759529,0.4429,3312.3,3312.0,40.8]
[1736507759734,2.31103827,3312.2,3312.0,40.8]
[1736507759936,0.30194,3312.0,3311.9,0.4627]
[1736507760236,0.30195,3311.9,3311.7,3.50976]
[1736507760432,0.8927,3312.1,3311.8,0.30196]
[1736507760433,0.30195,3312.0,3311.8,0.30196]
[1736507760934,2.31103827,3311.9,3311.6,4.70487678]
[1736507761133,0.30197,3311.7,3311.6,4.70487678]
[1736507761332,0.30198,3311.6,3311.5,0.4618]
[1736507762032,0.4605,3311.8,3311.5,0.4618]
[1736507762233,0.4605,3311.8,3311.6,0.30198]
[1736507762435,2.31103827,3311.9,3311.7,0.4355]
[1736507762639,2.61299827,3311.9,3311.7,0.73746]
[1736507762834,2.61298827,3311.9,3311.8,0.30196]
[1736507763138,0.30195,3311.9,3311.8,0.30196]
[1736507763341,1.21,3312.0,3311.9,0.30195]
[1736507763539,1.51194,3312.0,3311.9,0.30195]
[1736507763929,1.21,3312.3,3311.7,3.6433]
[1736507764136,1.21,3312.3,3312.2,0.30192]
[1736507764333,0.77601,3312.4,3312.2,0.30192]
[1736507764533,0.4741,3312.4,3312.3,0.77582]
[1736507764741,0.4741,3312.4,3312.3,1.21292]
[1736507765539,0.4741,3312.4,3312.3,0.911]
[1736507765839,0.77601,3312.4,3312.3,0.911]
[1736507766245,0.77601,3312.4,3312.3,0.4739]
[1736507766444,0.30192,3312.3,3312.2,3.2078]
[1736507766847,0.77601,3312.4,3312.2,3.50972]
[1736507768347,0.4741,3312.4,3312.3,0.30192]
[1736507768543,0.4741,3312.4,3312.3,1.63142]
[1736507768745,0.4741,3312.4,3312.3,1.3295]
[1736507769046,0.9337,3312.8,3312.3,1.3295]
[1736507769047,4.29280827,3312.8,3312.6,0.30188]
[1736507769242,1.6799,3312.8,3312.3,1.3295]
[1736507769454,1.98177,3312.8,3312.6,0.30189]
[1736507769949,0.77177,3312.8,3312.6,0.30189]
[1736507770438,0.4699,3312.8,3312.3,1.3295]
[1736507770639,0.451,3313.0,3312.7,3.2078]
[1736507770844,1.21,3313.2,3313.0,0.30185]
[1736507771047,1.21,3313.2,3312.8,1.3331]
[1736507771349,2.31103827,3313.4,3313.0,0.30184]
[1736507771541,2.31103827,3313.4,3312.8,1.3331]
[1736507771542,0.30184,3313.1,3312.8,1.3331]
[1736507771741,0.30186,3312.9,3312.7,44.0078]
[1736507771945,2.31103827,3312.8,3312.4,4.70487678]
[1736507772144,2.61293827,3312.5,3312.4,4.70487678]
[1736507772338,2.31103827,3312.5,3312.1,0.30193]
[1736507772544,0.74421,3312.4,3312.1,0.30193]
[1736507772751,0.74421,3312.4,3312.2,0.30192]
[1736507772944,0.74421,3312.4,3312.0,0.9035]
[1736507773150,0.74421,3312.4,3312.1,0.30193]
[1736507773546,0.4424,3312.3,3312.1,0.30193]
[1736507773944,0.4424,3312.3,3312.2,0.30192]
[1736507774545,0.74432,3312.3,3312.1,3.2078]
[1736507775552,0.30192,3312.2,3312.1,3.2078]
[1736507775755,0.4423,3312.4,3312.1,3.2078]
[1736507775756,0.30192,3312.4,3312.1,3.50973]
[1736507776557,0.30192,3312.4,3312.2,0.30192]
[1736507776753,0.3019,3312.5,3312.2,0.30192]
[1736507777056,0.30191,3312.4,3312.2,0.30192]
[1736507777451,0.8707,3312.7,3312.1,3.2078]
[1736507777650,0.8707,3312.7,3312.5,0.30189]
[1736507777954,0.8707,3312.7,3312.6,41.57349]
[1736507777955,0.4329,3312.7,3312.6,41.57349]
[1736507778544,0.4329,3312.7,3312.6,0.77349]
[1736507778944,0.474,3313.0,3312.6,0.4716]
[1736507779151,1.209,3313.1,3312.7,40.8]
[1736507779354,0.474,3313.3,3312.9,3.2078]
[1736507779654,0.75452072,3313.6,3313.4,0.30181]
[1736507779846,0.30182,3313.4,3313.2,0.30183]
[1736507780453,0.30181,3313.5,3313.2,0.30183]
[1736507781147,0.30181,3313.5,3312.9,3.2078]
[1736507781148,0.30185,3313.0,3312.9,3.2078]
[1736507781456,2.61288827,3313.0,3312.9,3.2078]
[1736507783161,3.82188827,3313.0,3312.9,3.2078]
[1736507783348,3.82188827,3313.0,3312.6,0.4716]
[1736507783349,3.52003827,3313.0,3312.6,0.4716]
[1736507783554,0.30188,3312.7,3312.6,0.4716]
[1736507783755,2.31103827,3312.7,3312.3,0.9165]
[1736507783954,0.30191,3312.5,3312.3,0.9165]
[1736507784253,0.30191,3312.5,3312.3,1.21841]
[1736507784451,0.30191,3312.4,3312.3,0.9165]
[1736507785353,0.30191,3312.4,3312.3,1.21842]
[1736507786057,0.30191,3312.4,3312.3,0.9165]
[1736507786253,0.9344,3312.6,3312.2,0.30192]
[1736507786460,0.30192,3312.3,3312.2,0.30192]
[1736507786658,0.30192,3312.2,3312.1,3.98243]
[1736507786858,0.30192,3312.3,3312.1,3.98243]
[1736507787062,0.30192,3312.2,3312.1,3.98243]
[1736507787861,1.3929,3312.6,3312.1,3.6805]
[1736507788061,0.30192,3312.3,3312.2,0.30192]
[1736507788356,0.30192,3312.2,3312.1,3.98243]
[1736507789960,0.30192,3312.2,3312.1,0.77463]
[1736507790755,0.30192,3312.3,3312.2,0.30192]
[1736507790955,1.3929,3312.6,3312.2,0.30192]
[1736507790956,1.3929,3312.6,3312.2,0.75482]
[1736507791457,0.30192,3312.3,3312.2,0.75482]
[1736507791961,0.30192,3312.3,3312.2,0.4529]
[1736507792859,0.30193,3312.1,3312.0,3.6736]
[1736507793056,0.30193,3312.1,3312.0,3.2078]
[1736507794360,4.4168,3312.5,3312.0,3.2078]
[1736507794557,0.30192,3312.3,3312.1,0.8679]
[1736507794752,1.3929,3312.6,3312.1,0.8679]
[1736507794950,0.30187,3312.8,3312.6,0.30189]
[1736507795162,1.3655,3313.4,3312.9,0.30186]
[1736507795463,0.30183,3313.3,3313.0,0.30185]
[1736507795654,2.5745,3313.4,3312.9,40.8]
[1736507795856,0.30184,3313.2,3312.9,41.10186]
[1736507796167,0.30184,3313.2,3312.9,0.30186]
[1736507797162,0.30184,3313.2,3312.8,44.0078]
[1736507797363,0.30184,3313.2,3313.0,0.30185]
[1736507797557,0.30184,3313.2,3312.9,0.30185]
[1736507797751,0.30182,3313.3,3312.9,0.30185]
[1736507797955,0.30185,3313.1,3312.8,44.30966]
[1736507798164,0.30187,3312.8,3312.7,0.4654]
[1736507798658,2.31103827,3312.9,3312.4,3.6837]
[1736507798860,0.3019,3312.5,3312.4,0.4759]
[1736507799062,2.112,3312.7,3312.2,0.4751]
[1736507799263,0.30192,3312.3,3312.2,0.4751]
[1736507799855,0.30191,3312.4,3312.2,0.77702]
[1736507800257,0.3019,3312.5,3312.3,0.30192]
[1736507800565,0.30191,3312.4,3312.2,0.77702]
[1736507801367,2.112,3312.7,3312.2,0.77702]
[1736507801664,0.30192,3312.3,3312.2,0.77702]
[1736507801864,0.30191,3312.4,3312.3,0.30192]
[1736507802058,0.30191,3312.4,3312.2,0.77702]
[1736507802263,0.30191,3312.4,3312.2,0.4751]
[1736507802460,0.30189,3312.6,3312.4,0.3019]
[1736507803175,3.2078,3313.0,3312.5,3.6545]
[1736507803368,0.30187,3312.9,3312.7,0.30188]
[1736507803862,0.30187,3312.9,3312.8,0.4301]
[1736507807367,0.30189,3312.6,3312.5,3.6545]
[1736507808365,0.30189,3312.6,3312.5,3.2078]
[1736507810564,0.30187,3312.8,3312.6,0.30188]
[1736507810875,0.30187,3312.8,3312.5,3.2078]
[1736507810876,0.30187,3312.8,3312.7,0.77398]
[1736507811067,0.30187,3312.8,3312.7,0.4721]
[1736507812970,0.4633,3313.0,3312.7,0.4721]
[1736507813180,0.30187,3312.8,3312.7,0.77398]
[1736507813673,0.76516,3313.0,3312.8,0.30187]
[1736507813875,0.30187,3312.8,3312.7,0.4721]
[1736507815771,0.30186,3312.9,3312.7,0.77397]
[1736507815975,0.30187,3312.8,3312.7,0.4721]
[1736507816171,0.4633,3313.0,3312.7,0.4721]
[1736507816383,0.76515,3313.0,3312.8,0.30187]
[1736507817375,0.30185,3313.0,3312.8,0.30187]
[1736507817772,0.30187,3312.9,3312.7,0.77397]
[1736507817970,3.6626,3313.1,3312.6,0.472]
[1736507818170,0.30188,3312.7,3312.6,0.472]
[1736507818369,0.30189,3312.6,3312.5,3.2078]
[1736507818565,0.75669,3312.6,3312.5,3.2078]
[1736507818777,3.06772827,3312.6,3312.5,3.2078]
[1736507819571,2.76583827,3312.6,3312.1,3.2078]
[1736507819767,1.209,3312.5,3312.1,3.2078]
[1736507819974,0.30192,3312.2,3312.1,3.2078]
[1736507820776,0.30192,3312.2,3312.1,3.50973]
[1736507820970,0.30192,3312.2,3312.1,3.2078]
[1736507821971,1.209,3312.5,3312.1,3.2078]
[1736507822181,1.209,3312.5,3312.2,0.30192]
[1736507822371,1.5109,3312.5,3312.4,0.30191]
[1736507822676,0.30188,3312.7,3312.6,0.30188]
[1736507823278,0.30188,3312.7,3312.6,41.10188]
[1736507823472,0.30188,3312.8,3312.6,41.10188]
[1736507823681,0.30188,3312.7,3312.6,0.30188]
[1736507823870,0.30188,3312.7,3312.5,0.30189]
[1736507824182,0.30188,3312.7,3312.5,41.10189]
[1736507825078,0.30188,3312.7,3312.6,0.30189]
[1736507825579,0.30188,3312.8,3312.6,0.30189]
[1736507825774,0.30188,3312.8,3312.7,0.4761]
[1736507825971,0.30189,3312.6,3312.5,41.10189]
[1736507827179,0.30189,3312.6,3312.5,41.1019]
[1736507827876,0.30189,3312.6,3312.5,0.3019]
[1736507828077,0.4747,3313.0,3312.5,0.3019]
[1736507828279,0.30188,3312.7,3312.5,0.3019]
[1736507828482,0.30188,3312.7,3312.5,3.2078]
[1736507828683,0.30188,3312.7,3312.6,0.30189]
[1736507830281,1.6418,3313.1,3312.5,5.51883827]
[1736507830584,0.30185,3313.0,3312.9,0.30186]
[1736507831087,8.75972754,3313.4,3312.5,5.51883827]
[1736507831382,0.30183,3313.2,3312.9,0.30185]
[1736507831583,0.30185,3313.1,3313.0,1.24275]
[1736507831785,0.30185,3313.1,3313.0,0.9409]
[1736507832585,2.31103827,3313.1,3312.6,0.30188]
[1736507832883,0.30187,3312.8,3312.7,0.30187]
[1736507833074,0.30183,3313.2,3312.9,0.30186]
[1736507833278,0.30184,3313.1,3313.0,0.4509]
[1736507833686,0.30184,3313.1,3313.0,0.75275]
[1736507833884,0.4614,3313.4,3313.0,0.4509]
[1736507834186,0.30182,3313.4,3313.3,0.30182]
[1736507834389,0.30183,3313.3,3313.2,0.30183]
[1736507834579,0.30182,3313.4,3313.3,0.30182]
[1736507835080,0.30181,3313.5,3313.3,0.30182]
[1736507835581,0.30182,3313.4,3313.3,0.30182]
[1736507835881,0.30183,3313.2,3313.1,0.434]
[1736507837885,0.30182,3313.4,3313.2,0.30183]
[1736507838091,0.30181,3313.5,3313.2,0.30183]
[1736507838282,1.208,3313.7,3313.1,0.434]
[1736507838590,1.5098,3313.7,3313.6,0.3018]
[1736507838777,1.208,3313.7,3313.1,0.434]
[1736507839289,0.30181,3313.6,3313.5,0.30181]
[1736507839686,1.208,3313.7,3313.6,0.3018]
[1736507839887,1.50979,3313.7,3313.6,0.3018]
[1736507840589,1.50979,3313.7,3313.5,0.3018]
[1736507840792,1.50979,3313.7,3313.6,0.4539]
[1736507840982,3.97818,3313.9,3313.7,0.30178]
[1736507841178,3.6764,3313.9,3313.6,0.4539]
[1736507841383,0.30176,3314.1,3313.9,0.30176]
[1736507841678,0.30176,3314.0,3313.8,0.30177]
[1736507842187,0.4495,3314.3,3313.9,0.30177]
[1736507842188,0.30176,3314.1,3313.9,0.30177]
[1736507843188,0.30176,3314.1,3313.7,41.2597]
[1736507843189,0.30175,3314.2,3313.8,0.30178]
[1736507843493,0.30174,3314.2,3314.0,0.30176]
[1736507843693,0.30174,3314.2,3314.1,0.4574]
[1736507844685,0.4495,3314.3,3313.7,41.2597]
[1736507844892,0.30177,3313.9,3313.7,42.00138]
[1736507845190,0.30177,3314.0,3313.8,0.30178]
[1736507845688,0.30177,3313.9,3313.7,1.20138]
[1736507845890,0.30178,3313.8,3313.7,0.8996]
[1736507846687,0.30178,3313.8,3313.7,1.3491]
[1736507847393,3.51488827,3314.3,3313.7,1.65089]
[1736507847592,0.30177,3313.9,3313.7,1.65089]
[1736507847890,0.30178,3313.8,3313.7,1.65089]
[1736507848085,0.30178,3313.8,3313.7,1.3491]
[1736507848490,0.4495,3314.3,3313.7,1.3491]
[1736507848690,0.30177,3313.9,3313.8,0.30178]
[1736507848993,0.30175,3314.1,3314.0,0.30176]
[1736507849188,0.4495,3314.3,3313.7,1.3491]
[1736507849490,0.30176,3314.0,3313.9,0.30177]
[1736507849686,0.30176,3314.0,3313.7,1.3491]
[1736507849893,0.4495,3314.3,3313.7,1.3491]
[1736507850192,0.30175,3314.1,3313.9,0.30176]
[1736507850590,0.30174,3314.3,3314.1,0.30175]
[1736507850792,0.30174,3314.3,3314.2,0.8976]
[1736507851193,2.75793827,3314.3,3313.6,3.2078]
[1736507851395,0.30179,3313.7,3313.6,3.5096]
[1736507851896,0.30178,3313.8,3313.7,0.30179]
[1736507852086,0.44,3314.2,3313.6,3.2078]
[1736507852287,0.30176,3314.1,3313.6,3.2078]
[1736507852486,0.30176,3314.1,3314.0,0.30176]
[1736507852693,0.30176,3314.1,3313.6,3.2078]
[1736507852891,0.30176,3314.1,3313.9,0.30176]
[1736507853086,0.30175,3314.1,3314.0,0.9119]
[1736507853283,0.30175,3314.1,3314.0,1.21366]
[1736507853696,0.30175,3314.1,3314.0,0.9119]
[1736507853991,0.30175,3314.1,3314.0,0.4396]
[1736507854295,0.30179,3313.7,3313.6,3.6801]
[1736507856797,0.30179,3313.7,3313.6,3.2078]
[1736507857495,3.06552827,3313.7,3313.2,3.2078]
[1736507857695,0.30182,3313.3,3313.2,3.2078]
[1736507858096,0.77132,3313.3,3313.2,3.2078]
[1736507861201,0.30187,3312.8,3312.7,41.7259]
[1736507861402,0.30187,3312.8,3312.7,41.271]
[1736507861602,0.30187,3312.8,3312.2,10.52919886]
[1736507861603,3.2078,3312.9,3312.3,0.47]
[1736507861802,0.30191,3312.4,3312.3,0.47]
[1736507862913,0.4378,3312.6,3312.2,3.6509]
[1736507863204,0.30192,3312.3,3312.2,3.6509]
[1736507863998,0.4378,3312.6,3312.2,3.6509]
[1736507864502,0.30192,3312.3,3312.2,3.6509]
[1736507864806,0.30192,3312.3,3312.2,0.4431]
[1736507868400,0.30193,3312.1,3312.0,0.43]
[1736507869606,1.208,3312.4,3312.0,0.43]
[1736507869802,0.3019,3312.5,3312.1,3.50973]
[1736507869995,0.4378,3312.6,3312.1,3.6767]
[1736507870201,0.30191,3312.5,3312.2,0.30192]
[1736507870401,0.30191,3312.5,3312.1,3.6767]
[1736507870402,0.30191,3312.5,3312.3,0.4667]
[1736507870713,0.3019,3312.5,3312.3,0.76861]
[1736507871102,0.30191,3312.4,3312.3,0.76861]
[1736507871607,0.30191,3312.4,3312.3,0.4667]
[1736507872008,0.30191,3312.4,3312.3,0.76862]
[1736507872302,0.30191,3312.4,3312.3,0.4667]
[1736507873203,0.30191,3312.4,3312.3,0.76862]
[1736507874097,5.51883827,3312.9,3312.3,0.4667]
[1736507874306,0.30191,3312.4,3312.3,0.76861]
[1736507874807,0.30191,3312.4,3312.3,0.4667]
[1736507876504,0.30192,3312.2,3312.1,3.2078]
[1736507878017,0.30194,3312.0,3311.9,0.4344]
[1736507878312,0.30194,3312.0,3311.9,0.73635]
[1736507878811,1.208,3312.4,3311.9,0.4344]
[1736507879007,0.30194,3312.0,3311.9,0.73635]
[1736507879509,0.30194,3312.0,3311.9,1.17235]
[1736507880013,0.30194,3312.0,3311.9,0.8704]
[1736507881514,0.30194,3312.0,3311.7,3.2078]
[1736507881515,0.30196,3311.8,3311.7,3.2078]
[1736507886217,2.76273827,3312.3,3311.7,3.2078]
[1736507886421,0.30193,3312.2,3312.0,0.30194]
[1736507886615,0.30193,3312.2,3312.1,0.437]
[1736507886921,0.75362,3312.3,3312.1,1.19143]
[1736507887116,0.30191,3312.4,3312.2,0.30192]
[1736507887621,3.5097,3312.5,3312.3,0.30192]
[1736507887816,0.30189,3312.6,3312.3,0.30192]
[1736507888016,0.4727,3312.8,3312.4,0.751]
[1736507888219,0.3019,3312.6,3312.4,0.751]
[1736507889023,0.3019,3312.5,3312.4,0.4491]
[1736507890219,0.3019,3312.5,3312.4,0.75101]
[1736507891024,0.3019,3312.5,3312.4,0.4491]
[1736507891914,0.30191,3312.4,3312.2,3.50972]
[1736507892115,2.31103827,3312.6,3312.2,3.50972]
[1736507892315,0.30191,3312.4,3312.2,3.50972]
[1736507892516,2.31103827,3312.6,3312.2,3.50972]
[1736507892717,0.4592,3312.3,3312.2,3.50972]
[1736507893926,0.76112,3312.3,3312.2,3.2078]
[1736507894127,0.76112,3312.3,3312.1,0.8895]
[1736507894128,0.4592,3312.3,3312.1,0.8895]
[1736507894319,0.30192,3312.2,3312.1,0.8895]
[1736507894820,0.30192,3312.2,3312.1,1.19143]
[1736507896225,0.30192,3312.2,3312.1,0.8895]
[1736507896529,0.4592,3312.3,3311.6,3.50977]
[1736507896530,0.30197,3311.7,3311.6,3.50977]
[1736507896916,0.4634,3312.1,3311.6,3.2078]
[1736507897123,0.30197,3311.7,3311.6,3.2078]
[1736507909136,0.30197,3311.7,3311.5,1.18429]
[1736507909333,0.30198,3311.6,3311.5,1.18429]
[1736507911236,0.30198,3311.6,3311.5,0.8823]
[1736507911532,0.30198,3311.6,3311.5,1.18429]
[1736507915029,0.4675,3311.8,3311.5,0.8823]
[1736507915429,0.30198,3311.6,3311.5,0.8823]
[1736507915731,0.30199,3311.5,3311.4,3.2078]
[1736507916831,0.30199,3311.5,3311.4,3.5098]
[1736507917036,0.30199,3311.6,3311.5,0.30198]
[1736507917634,0.4675,3311.8,3311.4,3.2078]
[1736507917938,0.30196,3311.8,3311.7,0.30197]
[1736507919735,4.1152,3312.1,3311.3,11.14581505]
[1736507919939,1.208,3312.8,3311.7,3.2078]
[1736507920142,0.30191,3312.4,3312.3,0.30191]
[1736507920341,2.1374,3312.8,3312.1,3.2078]
[1736507920541,0.9294,3312.8,3312.1,3.2078]
[1736507920743,0.30191,3312.5,3312.3,0.30191]
[1736507921137,0.9294,3312.8,3312.3,0.30191]
[1736507921439,0.30191,3312.5,3312.4,0.4302]
[1736507922744,0.30191,3312.5,3312.4,0.73211]
[1736507922942,0.30191,3312.5,3312.4,0.4302]
[1736507923139,0.30189,3312.6,3312.4,0.7321]
[1736507924035,0.9294,3312.8,3312.4,0.4302]
[1736507924241,0.9294,3312.8,3312.5,0.30189]
[1736507924442,0.30189,3312.6,3312.5,0.75499]
[1736507925639,0.30189,3312.6,3312.5,0.4531]
[1736507926739,0.3019,3312.5,3312.4,0.4302]
[1736507927447,0.3019,3312.5,3312.4,0.73211]
[1736507927747,0.9294,3312.8,3312.4,0.4302]
[1736507927948,0.3019,3312.6,3312.4,0.7321]
[1736507928346,0.9294,3312.8,3312.4,0.4302]
[1736507928548,0.30192,3312.2,3312.1,3.96283]
[1736507928847,0.30192,3312.2,3312.1,3.2078]
[1736507929844,0.30192,3312.2,3312.1,3.50973]
[1736507933846,2.31103827,3312.6,3312.0,0.4673]
[1736507934048,0.30193,3312.1,3312.0,0.76924]
[1736507934345,0.30193,3312.1,3312.0,0.4673]
[1736507934535,3.69313827,3312.3,3311.9,3.2078]
[1736507934741,0.30194,3312.0,3311.9,0.30195]
[1736507935047,0.30195,3311.9,3311.8,0.4457]
[1736507935344,0.30195,3311.9,3311.8,0.74766]
[1736507935543,0.30195,3311.9,3311.8,0.4457]
[1736507935750,0.30195,3311.9,3311.8,0.8905]
[1736507937545,3.69313827,3312.3,3311.5,3.2078]
[1736507937747,0.8967,3311.8,3311.6,0.30197]
[1736507937943,0.30197,3311.7,3311.6,0.30197]
[1736507938243,1.19867,3311.8,3311.6,0.30197]
[1736507938446,1.19867,3311.8,3311.5,3.2078]
[1736507938744,1.19867,3311.8,3311.7,0.30197]
[1736507939747,0.8967,3311.8,3311.5,3.2078]
[1736507939947,0.30198,3311.6,3311.5,3.50978]
[1736507941446,0.30198,3311.6,3311.5,3.2078]
[1736507941847,0.30198,3311.6,3311.5,3.50979]
[1736507942248,0.30198,3311.6,3311.5,3.2078]
[1736507942753,0.30198,3311.6,3311.5,3.50979]
[1736507942954,0.30198,3311.6,3311.5,3.2078]
[1736507948855,3.2078,3311.6,3311.2,40.8]
[1736507949161,0.30202,3311.2,3311.1,0.4404]
[1736507949958,0.30202,3311.1,3311.0,0.4702]
[1736507950864,0.30204,3310.9,3310.8,0.9169]
[1736507951956,0.30204,3310.9,3310.8,0.468]
[1736507952263,0.30207,3310.6,3310.5,3.2078]
[1736507952563,2.61310827,3310.6,3310.5,3.2078]
[1736507952764,0.30209,3310.4,3310.3,4.70487678]
[1736507953277,0.4683,3310.5,3310.1,40.8]
[1736507953465,0.4683,3310.5,3310.3,0.03510101]
[1736507953661,0.30209,3310.4,3310.3,0.03510101]
[1736507954066,0.30208,3310.5,3310.3,0.03510101]
[1736507954364,0.30209,3310.4,3310.3,0.03510101]